fUSD/lending_fUSD_20250119
["ID","MTS","AMOUNT","RATE_DAILY","PERIOD"]
[349535540,1737283870646,-590.61,0.0002,2]
[349535541,1737283870656,-500.0,0.0002,2]
[349535542,1737283870666,-500.0,0.0002,2]
[349535543,1737283870676,-500.0,0.0002,2]
[349535544,1737283870686,-500.0,0.0002,2]
[349535545,1737283870695,-500.0,0.0002,2]
[349535546,1737283870706,-500.0,0.0002,2]
[349535547,1737283870715,-500.0,0.0002,2]
[349535548,1737283870724,-713.24,0.0002,2]
[349535549,1737283870734,-500.0,0.0002,2]
[349535550,1737283870743,-151.0,0.0002,2]
[349535551,1737283870754,-523.75,0.0002,2]
[349535552,1737283870763,-536.69,0.0002,2]
[349535553,1737283870772,-511.56504729,0.0002,2]
[349535554,1737283870781,-500.0,0.0002,2]
[349535555,1737283870791,-500.0,0.0002,2]
[349535556,1737283870800,-917.76,0.0002,2]
[349535557,1737283870809,-500.0,0.0002,2]
[349535558,1737283870818,-512.37,0.0002,2]
[349535559,1737283870827,-500.0,0.0002,2]
[349535560,1737283870836,-632.35408358,0.0002,2]
[349535561,1737283870845,-500.0,0.0002,2]
[349535562,1737283870854,-500.0,0.0002,2]
[349535563,1737283870863,-541.39,0.0002,2]
[349535564,1737283870872,-766.68,0.0002,2]
[349535565,1737283870882,-776.23,0.0002,2]
[349535566,1737283870891,-500.0,0.0002,2]
[349535567,1737283870900,-500.0,0.0002,2]
[349535568,1737283870910,-500.0,0.0002,2]
[349535569,1737283870919,-500.0,0.0002,2]
[349535570,1737283870929,-500.0,0.0002,2]
[349535571,1737283870938,-500.0,0.0002,2]
[349535572,1737283870947,-500.0,0.0002,2]
[349535573,1737283870956,-500.0,0.0002,2]
[349535574,1737283870965,-518.56,0.0002,2]
[349535575,1737283870974,-500.0,0.0002,2]
[349535576,1737283870983,-500.0,0.0002,2]
[349535577,1737283870993,-500.0,0.0002,2]
[349535578,1737283871002,-783.5,0.0002,2]
[349535579,1737283871011,-500.0,0.0002,2]
[349535580,1737283871020,-584.68,0.0002,2]
[349535581,1737283871030,-500.0,0.0002,2]
[349535582,1737283871039,-500.0,0.0002,2]
[349535583,1737283871047,-500.0,0.0002,2]
[349535584,1737283871057,-500.0,0.0002,2]
[349535585,1737283871066,-500.0,0.0002,2]
[349535586,1737283871075,-500.0,0.0002,2]
[349535587,1737283871084,-1116.59,0.0002,2]
[349535588,1737283871094,-500.0,0.0002,2]
[349535589,1737283871103,-500.0,0.0002,2]
[349535590,1737283871112,-500.0,0.0002,2]
[349535591,1737283871121,-500.0,0.0002,2]
[349535592,1737283871131,-500.0,0.0002,2]
[349535593,1737283871140,-228.01130974,0.0002,2]
[349535594,1737283871150,-500.0,0.0002,2]
[349535595,1737283871159,-500.0,0.0002,2]
[349535596,1737283871167,-500.0,0.0002,2]
[349535597,1737283871178,-500.0,0.0002,2]
[349535598,1737283871187,-505.79131475,0.0002,2]
[349535599,1737283871196,-500.0,0.0002,2]
[349535600,1737283871205,-702.08,0.0002,2]
[349535601,1737283871215,-500.0,0.0002,2]
[349535602,1737283871224,-2602.19,0.0002,2]
[349535603,1737283871233,-500.0,0.0002,2]
[349535604,1737283871244,-500.0,0.0002,2]
[349535605,1737283871256,-500.0,0.0002,2]
[349535606,1737283871266,-500.0,0.0002,2]
[349535607,1737283871276,-500.0,0.0002,2]
[349535608,1737283871285,-500.0,0.0002,2]
[349535609,1737283871294,-500.0,0.0002,2]
[349535610,1737283871303,-500.0,0.0002,2]
[349535611,1737283871312,-500.0,0.0002,2]
[349535612,1737283871321,-565.03,0.0002,2]
[349535613,1737283871331,-271.22139575,0.0002,2]
[349535614,1737283871341,-500.0,0.0002,2]
[349535615,1737283871350,-500.0,0.0002,2]
[349535616,1737283871359,-500.0,0.0002,2]
[349535617,1737283871368,-500.0,0.0002,2]
[349535618,1737283871377,-500.0,0.0002,2]
[349535619,1737283871386,-500.0,0.0002,2]
[349535620,1737283871395,-500.0,0.0002,2]
[349535621,1737283871404,-500.0,0.0002,2]
[349535622,1737283871413,-500.0,0.0002,2]
[349535623,1737283871422,-500.0,0.0002,2]
[349535624,1737283871432,-500.0,0.0002,2]
[349535625,1737283871441,-500.0,0.0002,2]
[349535626,1737283871450,-500.0,0.0002,2]
[349535627,1737283871459,-500.0,0.0002,2]
[349535628,1737283871468,-500.0,0.0002,2]
[349535629,1737283871477,-500.0,0.0002,2]
[349535630,1737283871487,-500.0,0.0002,2]
[349535631,1737283871496,-500.0,0.0002,2]
[349535632,1737283871505,-500.0,0.0002,2]
[349535633,1737283871514,-500.0,0.0002,2]
[349535634,1737283871523,-500.0,0.0002,2]
[349535635,1737283871532,-500.0,0.0002,2]
[349535636,1737283871541,-500.0,0.0002,2]
[349535637,1737283871550,-500.0,0.0002,2]
[349535638,1737283871559,-500.0,0.0002,2]
[349535639,1737283871568,-500.0,0.0002,2]
[349535640,1737283871576,-500.0,0.0002,2]
[349535641,1737283871586,-500.0,0.0002,2]
[349535642,1737283871595,-163.349567,0.0002,2]
[349535643,1737283871604,-500.0,0.0002,2]
[349535644,1737283871613,-500.0,0.0002,2]
[349535645,1737283871622,-500.0,0.0002,2]
[349535646,1737283871631,-500.0,0.0002,2]
[349535647,1737283871640,-500.0,0.0002,2]
[349535648,1737283871649,-500.0,0.0002,2]
[349535649,1737283871658,-500.0,0.0002,2]
[349535650,1737283871667,-500.0,0.0002,2]
[349535651,1737283871676,-500.0,0.0002,2]
[349535652,1737283871686,-500.0,0.0002,2]
[349535653,1737283871695,-637.24090478,0.0002,2]
[349535654,1737283871704,-500.0,0.0002,2]
[349535655,1737283871713,-500.0,0.0002,2]
[349535656,1737283871722,-500.0,0.0002,2]
[349535657,1737283871732,-500.0,0.0002,2]
[349535658,1737283871741,-500.0,0.0002,2]
[349535659,1737283871750,-500.0,0.0002,2]
[349535660,1737283871759,-500.0,0.0002,2]
[349535661,1737283871768,-500.0,0.0002,2]
[349535662,1737283871777,-500.0,0.0002,2]
[349535663,1737283871786,-500.0,0.0002,2]
[349535664,1737283871795,-500.0,0.0002,2]
[349535665,1737283871805,-500.0,0.0002,2]
[349535666,1737283871814,-500.0,0.0002,2]
[349535667,1737283871823,-500.0,0.0002,2]
[349535668,1737283871833,-500.0,0.0002,2]
[349535669,1737283871842,-500.0,0.0002,2]
[349535670,1737283871851,-500.0,0.0002,2]
[349535671,1737283871861,-500.0,0.0002,2]
[349535672,1737283871870,-2043.55,0.0002,2]
[349535673,1737283871880,-500.0,0.0002,2]
[349535674,1737283871889,-165.177093,0.0002,2]
[349535675,1737283871898,-500.0,0.0002,2]
[349535676,1737283871908,-549.86,0.0002,2]
[349535677,1737283871917,-500.0,0.0002,2]
[349535678,1737283871926,-165.177093,0.0002,2]
[349535679,1737283871936,-500.0,0.0002,2]
[349535680,1737283871945,-526.00607883,0.0002,2]
[349535681,1737283871954,-500.0,0.0002,2]
[349535682,1737283871963,-500.0,0.0002,2]
[349535683,1737283871971,-500.0,0.0002,2]
[349535684,1737283871980,-500.0,0.0002,2]
[349535685,1737283871990,-500.0,0.0002,2]
[349535686,1737283871999,-500.0,0.0002,2]
[349535687,1737283872008,-175.09883082,0.0002,2]
[349535688,1737283872018,-500.0,0.0002,2]
[349535689,1737283872027,-500.0,0.0002,2]
[349535690,1737283872036,-500.0,0.0002,2]
[349535691,1737283872046,-500.0,0.0002,2]
[349535692,1737283872055,-500.0,0.0002,2]
[349535693,1737283872064,-500.0,0.0002,2]
[349535694,1737283872073,-500.0,0.0002,2]
[349535695,1737283872083,-500.0,0.0002,2]
[349535696,1737283872092,-517.72169376,0.0002,2]
[349535697,1737283872101,-500.0,0.0002,2]
[349535698,1737283872111,-500.0,0.0002,2]
[349535699,1737283872120,-500.0,0.0002,2]
[349535700,1737283872129,-188.14660675,0.0002,2]
[349535701,1737283872138,-156.895581,0.0002,2]
[349535702,1737283872148,-500.0,0.0002,2]
[349535703,1737283872157,-500.0,0.0002,2]
[349535704,1737283872166,-156.895581,0.0002,2]
[349535705,1737283872175,-500.0,0.0002,2]
[349535706,1737283872188,-500.0,0.0002,2]
[349535707,1737283872198,-500.0,0.0002,2]
[349535708,1737283872207,-500.0,0.0002,2]
[349535709,1737283872216,-215.623532,0.0002,2]
[349535710,1737283872353,-183.91683419,0.0002,2]
[349535711,1737283872363,-528.74,0.0002,2]
[349535712,1737283872373,-215.623532,0.0002,2]
[349535713,1737283872384,-414.2128298,0.0002,2]
[349535714,1737283872393,-580.43,0.0002,2]
[349535715,1737283872403,-605.84,0.0002,2]
[349535716,1737283872413,-180.57033424,0.0002,2]
[349535717,1737283872422,-500.0,0.0002,2]
[349535718,1737283872434,-500.0,0.0002,2]
[349535719,1737283872443,-637.03,0.0002,2]
[349535720,1737283872452,-500.0,0.0002,2]
[349535721,1737283872461,-500.0,0.0002,2]
[349535722,1737283872471,-521.4,0.0002,2]
[349535723,1737283872479,-500.0,0.0002,2]
[349535724,1737283872489,-500.0,0.0002,2]
[349535725,1737283872498,-505.52930574,0.0002,2]
[349535726,1737283872507,-627.47,0.0002,2]
[349535727,1737283872517,-500.0,0.0002,2]
[349535728,1737283872527,-500.0,0.0002,2]
[349535729,1737283872536,-500.0,0.0002,2]
[349535730,1737283872546,-500.0,0.0002,2]
[349535731,1737283872556,-333.59849219,0.0002,2]
[349535732,1737283872565,-500.0,0.0002,2]
[349535733,1737283872574,-507.54167314,0.0002,2]
[349535734,1737283872584,-579.9,0.0002,2]
[349535735,1737283872594,-500.0,0.0002,2]
[349535736,1737283872603,-500.0,0.0002,2]
[349535737,1737283872612,-500.0,0.0002,2]
[349535738,1737283872621,-500.0,0.0002,2]
[349535739,1737283872631,-500.0,0.0002,2]
[349535740,1737283872640,-627.08728379,0.0002,2]
[349535741,1737283872649,-500.0,0.0002,2]
[349535742,1737283872659,-500.0,0.0002,2]
[349535743,1737283872668,-500.0,0.0002,2]
[349535744,1737283872677,-500.0,0.0002,2]
[349535745,1737283872687,-500.0,0.0002,2]
[349535746,1737283872697,-500.0,0.0002,2]
[349535747,1737283872706,-500.0,0.0002,2]
[349535748,1737283872716,-500.0,0.0002,2]
[349535749,1737283872725,-500.0,0.0002,2]
[349535750,1737283872735,-500.0,0.0002,2]
[349535751,1737283872744,-516.55830404,0.0002,2]
[349535752,1737283872753,-449.09230435,0.0002,2]
[349535753,1737283872763,-500.0,0.0002,2]
[349535754,1737283872771,-500.0,0.0002,2]
[349535755,1737283872781,-500.0,0.0002,2]
[349535756,1737283872790,-500.0,0.0002,2]
[349535757,1737283872799,-500.0,0.0002,2]
[349535758,1737283872808,-515.930378,0.0002,2]
[349535759,1737283872817,-500.0,0.0002,2]
[349535760,1737283872826,-500.0,0.0002,2]
[349535761,1737283872835,-500.0,0.0002,2]
[349535762,1737283872843,-487.70314524,0.0002,2]
[349535763,1737283872853,-1003.77,0.0002,2]
[349535764,1737283872862,-500.0,0.0002,2]
[349535765,1737283872871,-500.0,0.0002,2]
[349535766,1737283872880,-1030.56,0.0002,2]
[349535767,1737283872889,-500.0,0.0002,2]
[349535768,1737283872898,-510.94196189,0.0002,2]
[349535769,1737283872908,-500.0,0.0002,2]
[349535770,1737283872917,-500.0,0.0002,2]
[349535771,1737283872926,-631.77,0.0002,2]
[349535772,1737283872937,-2323.77,0.0002,2]
[349535773,1737283872946,-635.02,0.0002,2]
[349535774,1737283872956,-500.0,0.0002,2]
[349535775,1737283872966,-589.97817936,0.0002,2]
[349535776,1737283872975,-577.63,0.0002,2]
[349535777,1737283872985,-500.0,0.0002,2]
[349535778,1737283872993,-204.1556953,0.0002,2]
[349535779,1737283873003,-500.0,0.0002,2]
[349535780,1737283873012,-3097.0,0.0002,2]
[349535781,1737283873021,-500.0,0.0002,2]
[349535782,1737283873031,-1005.63,0.0002,2]
[349535783,1737283873040,-500.0,0.0002,2]
[349535784,1737283873050,-500.0,0.0002,2]
[349535785,1737283873059,-500.0,0.0002,2]
[349535786,1737283873068,-500.0,0.0002,2]
[349535787,1737283873077,-500.0,0.0002,2]
[349535788,1737283873087,-484.45109359,0.0002,2]
[349535789,1737283873096,-506.19796777,0.0002,2]
[349535790,1737283873106,-500.0,0.0002,2]
[349535791,1737283873116,-1256.94,0.0002,2]
[349535792,1737283873126,-11879.94,0.0002,2]
[349535793,1737283873135,-1216.46,0.0002,2]
[349535794,1737283873144,-500.0,0.0002,2]
[349535795,1737283873153,-608.69,0.0002,2]
[349535796,1737283873162,-500.0,0.0002,2]
[349535797,1737283873171,-500.0,0.0002,2]
[349535798,1737283873180,-500.0,0.0002,2]
[349535799,1737283873190,-500.0,0.0002,2]
[349535800,1737283873199,-500.0,0.0002,2]
[349535801,1737283873208,-688.32,0.0002,2]
[349535802,1737283873217,-3397.4,0.0002,2]
[349535803,1737283873228,-500.0,0.0002,2]
[349535804,1737283873237,-500.0,0.0002,2]
[349535805,1737283873246,-500.0,0.0002,2]
[349535806,1737283873257,-500.0,0.0002,2]
[349535807,1737283873266,-500.0,0.0002,2]
[349535808,1737283873276,-500.0,0.0002,2]
[349535809,1737283873285,-500.0,0.0002,2]
[349535810,1737283873295,-228.58774546,0.0002,2]
[349535811,1737283873304,-500.0,0.0002,2]
[349535812,1737283873313,-500.0,0.0002,2]
[349535813,1737283873321,-500.0,0.0002,2]
[349535814,1737283873333,-500.0,0.0002,2]
[349535815,1737283873341,-528.35586291,0.0002,2]
[349535816,1737283873350,-382.30795998,0.0002,2]
[349535817,1737283873359,-5667.54,0.0002,2]
[349535818,1737283873369,-1735.14,0.0002,2]
[349535819,1737283873378,-1499.614895,0.0002,2]
[349535820,1737283873387,-500.0,0.0002,2]
[349535821,1737283873396,-500.0,0.0002,2]
[349535822,1737283873405,-942.38,0.0002,2]
[349535823,1737283873414,-197.94115361,0.0002,2]
[349535824,1737283873423,-1499.614895,0.0002,2]
[349535825,1737283873433,-514.92371456,0.0002,2]
[349535826,1737283873442,-500.0,0.0002,2]
[349535827,1737283873451,-209.90547529,0.0002,2]
[349535828,1737283873459,-500.0,0.0002,2]
[349535829,1737283873468,-500.0,0.0002,2]
[349535830,1737283873477,-617.68,0.0002,2]
[349535831,1737283873486,-504.95126652,0.0002,2]
[349535832,1737283873495,-500.0,0.0002,2]
[349535833,1737283873505,-3188.95,0.0002,2]
[349535834,1737283873514,-500.0,0.0002,2]
[349535835,1737283873523,-2260.69,0.0002,2]
[349535836,1737283873532,-500.0,0.0002,2]
[349535837,1737283873542,-500.0,0.0002,2]
[349535838,1737283873551,-1124.05,0.0002,2]
[349535839,1737283873559,-500.0,0.0002,2]
[349535840,1737283873569,-500.0,0.0002,2]
[349535841,1737283873577,-544.77,0.0002,2]
[349535842,1737283873586,-500.0,0.0002,2]
[349535843,1737283873595,-500.0,0.0002,2]
[349535844,1737283873604,-1632.27,0.0002,2]
[349535845,1737283873613,-500.0,0.0002,2]
[349535846,1737283873623,-550.47,0.0002,2]
[349535847,1737283873632,-1360.05,0.0002,2]
[349535848,1737283873641,-346.70983161,0.0002,2]
[349535849,1737283873650,-730.23,0.0002,2]
[349535850,1737283873659,-500.0,0.0002,2]
[349535851,1737283873669,-1209.91,0.0002,2]
[349535852,1737283873678,-173.81813324,0.0002,2]
[349535853,1737283873689,-500.0,0.0002,2]
[349535854,1737283873699,-500.0,0.0002,2]
[349535855,1737283873708,-962.98,0.0002,2]
[349535856,1737283873717,-500.0,0.0002,2]
[349535857,1737283873726,-500.0,0.0002,2]
[349535858,1737283873735,-500.0,0.0002,2]
[349535859,1737283873744,-1043.59,0.0002,2]
[349535860,1737283873754,-704.36,0.0002,2]
[349535861,1737283873763,-500.0,0.0002,2]
[349535862,1737283873773,-543.14,0.0002,2]
[349535863,1737283873782,-2894.56,0.0002,2]
[349535864,1737283873791,-545.54950891,0.0002,2]
[349535865,1737283873801,-500.0,0.0002,2]
[349535866,1737283873811,-500.0,0.0002,2]
[349535867,1737283873820,-1112.25,0.0002,2]
[349535868,1737283873830,-500.0,0.0002,2]
[349535869,1737283873840,-500.0,0.0002,2]
[349535870,1737283873849,-1126.32,0.0002,2]
[349535871,1737283873859,-541.55,0.0002,2]
[349535872,1737283873868,-1448.99,0.0002,2]
[349535873,1737283873877,-500.0,0.0002,2]
[349535874,1737283873887,-500.0,0.0002,2]
[349535875,1737283873896,-506.57239216,0.0002,2]
[349535876,1737283873906,-913.02,0.0002,2]
[349535877,1737283873915,-548.25790251,0.0002,2]
[349535878,1737283873925,-500.0,0.0002,2]
[349535879,1737283873937,-500.0,0.0002,2]
[349535880,1737283873946,-500.0,0.0002,2]
[349535881,1737283873956,-479.170188,0.0002,2]
[349535882,1737283873965,-1265.52,0.0002,2]
[349535883,1737283873975,-4009.74,0.0002,2]
[349535884,1737283873984,-500.0,0.0002,2]
[349535885,1737283873993,-500.0,0.0002,2]
[349535886,1737283874002,-500.0,0.0002,2]
[349535887,1737283874012,-700.51,0.0002,2]
[349535888,1737283874021,-500.0,0.0002,2]
[349535889,1737283874031,-500.0,0.0002,2]
[349535890,1737283874040,-500.0,0.0002,2]
[349535891,1737283874049,-500.0,0.0002,2]
[349535892,1737283874058,-512.0849744,0.0002,2]
[349535893,1737283874067,-500.0,0.0002,2]
[349535894,1737283874076,-940.25,0.0002,2]
[349535895,1737283874086,-500.0,0.0002,2]
[349535896,1737283874095,-500.0,0.0002,2]
[349535897,1737283874104,-2618.63,0.0002,2]
[349535898,1737283874113,-500.0,0.0002,2]
[349535899,1737283874122,-500.0,0.0002,2]
[349535900,1737283874132,-500.0,0.0002,2]
[349535901,1737283874142,-500.0,0.0002,2]
[349535902,1737283874151,-600.2,0.0002,2]
[349535903,1737283874160,-500.0,0.0002,2]
[349535904,1737283874169,-500.0,0.0002,2]
[349535905,1737283874179,-500.0,0.0002,2]
[349535906,1737283874190,-7315.83,0.0002,2]
[349535907,1737283874200,-453.6898395,0.0002,2]
[349535908,1737283874209,-2144.05,0.0002,2]
[349535909,1737283874218,-1886.57,0.0002,2]
[349535910,1737283874226,-1320.33,0.0002,2]
[349535911,1737283874236,-500.0,0.0002,2]
[349535912,1737283874246,-500.0,0.0002,2]
[349535913,1737283874258,-500.0,0.0002,2]
[349535914,1737283874268,-500.0,0.0002,2]
[349535915,1737283874277,-1833.46,0.0002,2]
[349535916,1737283874287,-500.0,0.0002,2]
[349535917,1737283874297,-500.0,0.0002,2]
[349535918,1737283874307,-1146.48,0.0002,2]
[349535919,1737283874316,-500.0,0.0002,2]
[349535920,1737283874325,-6964.65,0.0002,2]
[349535921,1737283874335,-500.0,0.0002,2]
[349535922,1737283874344,-500.0,0.0002,2]
[349535923,1737283874353,-1729.83,0.0002,2]
[349535924,1737283874362,-500.0,0.0002,2]
[349535925,1737283874371,-500.0,0.0002,2]
[349535926,1737283874388,-2349.68,0.0002,2]
[349535927,1737283874400,-500.0,0.0002,2]
[349535928,1737283874575,-2142.93,0.0002,2]
[349535929,1737283874585,-500.0,0.0002,2]
[349535930,1737283874596,-500.0,0.0002,2]
[349535931,1737283874605,-1744.21,0.0002,2]
[349535932,1737283874615,-500.0,0.0002,2]
[349535933,1737283874624,-686.43,0.0002,2]
[349535934,1737283874634,-2892.09,0.0002,2]
[349535935,1737283874644,-151.0,0.0002,2]
[349535936,1737283874653,-500.0,0.0002,2]
[349535937,1737283874663,-500.0,0.0002,2]
[349535938,1737283874672,-500.0,0.0002,2]
[349535939,1737283874681,-1002.08,0.0002,2]
[349535940,1737283874691,-205.56,0.0002,2]
[349535941,1737283874701,-623.62,0.0002,2]
[349535942,1737283874711,-500.0,0.0002,2]
[349535943,1737283874721,-770.77,0.0002,2]
[349535944,1737283874731,-9460.13,0.0002,2]
[349535945,1737283874740,-2072.12,0.0002,2]
[349535946,1737283874750,-500.0,0.0002,2]
[349535947,1737283874759,-4098.31,0.0002,2]
[349535948,1737283874769,-500.0,0.0002,2]
[349535949,1737283874778,-500.0,0.0002,2]
[349535950,1737283874788,-503.74,0.0002,2]
[349535951,1737283874798,-500.0,0.0002,2]
[349535952,1737283874807,-509.25,0.0002,2]
[349535953,1737283874817,-500.0,0.0002,2]
[349535954,1737283874827,-500.0,0.0002,2]
[349535955,1737283874836,-500.0,0.0002,2]
[349535956,1737283874845,-500.0,0.0002,2]
[349535957,1737283874855,-500.0,0.0002,2]
[349535958,1737283874864,-1622.26,0.0002,2]
[349535959,1737283874874,-500.0,0.0002,2]
[349535960,1737283874883,-500.0,0.0002,2]
[349535961,1737283874892,-839.58,0.0002,2]
[349535962,1737283874901,-500.0,0.0002,2]
[349535963,1737283874911,-622.13,0.0002,2]
[349535964,1737283874921,-746.16,0.0002,2]
[349535965,1737283874931,-500.0,0.0002,2]
[349535966,1737283874940,-2122.49,0.0002,2]
[349535967,1737283874949,-700.78,0.0002,2]
[349535968,1737283874959,-151.0,0.0002,2]
[349535969,1737283874969,-500.0,0.0002,2]
[349535970,1737283874979,-500.0,0.0002,2]
[349535971,1737283874989,-500.0,0.0002,2]
[349535972,1737283874998,-1394.781451,0.0002,2]
[349535973,1737283875008,-500.0,0.0002,2]
[349535974,1737283875018,-6710.42,0.0002,2]
[349535975,1737283875028,-500.0,0.0002,2]
[349535976,1737283875038,-968.36,0.0002,2]
[349535977,1737283875048,-500.0,0.0002,2]
[349535978,1737283875058,-500.0,0.0002,2]
[349535979,1737283875067,-500.0,0.0002,2]
[349535980,1737283875076,-1394.781451,0.0002,2]
[349535981,1737283875086,-500.0,0.0002,2]
[349535982,1737283875096,-2138.74,0.0002,2]
[349535983,1737283875105,-2990.26,0.0002,2]
[349535984,1737283875115,-500.0,0.0002,2]
[349535985,1737283875124,-939.99,0.0002,2]
[349535986,1737283875133,-1497.89,0.0002,2]
[349535987,1737283875142,-500.0,0.0002,2]
[349535988,1737283875152,-500.0,0.0002,2]
[349535989,1737283875162,-500.0,0.0002,2]
[349535990,1737283875171,-500.0,0.0002,2]
[349535991,1737283875180,-500.0,0.0002,2]
[349535992,1737283875190,-1550.84,0.0002,2]
[349535993,1737283875199,-500.0,0.0002,2]
[349535994,1737283875209,-500.0,0.0002,2]
[349535995,1737283875219,-500.0,0.0002,2]
[349535996,1737283875229,-500.0,0.0002,2]
[349535997,1737283875239,-1454.18,0.0002,2]
[349535998,1737283875248,-660.46,0.0002,2]
[349535999,1737283875263,-857.18,0.0002,2]
[349536000,1737283875274,-2515.58,0.0002,2]
[349536001,1737283875283,-500.0,0.0002,2]
[349536002,1737283875292,-508.35375038,0.0002,2]
[349536003,1737283875303,-500.0,0.0002,2]
[349536004,1737283875312,-500.0,0.0002,2]
[349536005,1737283875321,-1304.59,0.0002,2]
[349536006,1737283875332,-500.0,0.0002,2]
[349536007,1737283875341,-1399.53,0.0002,2]
[349536008,1737283875351,-500.0,0.0002,2]
[349536009,1737283875361,-500.0,0.0002,2]
[349536010,1737283875370,-961.23,0.0002,2]
[349536011,1737283875379,-500.0,0.0002,2]
[349536012,1737283875389,-500.0,0.0002,2]
[349536013,1737283875398,-6814.74,0.0002,2]
[349536014,1737283875408,-500.0,0.0002,2]
[349536015,1737283875419,-563.53,0.0002,2]
[349536016,1737283875428,-500.0,0.0002,2]
[349536017,1737283875438,-2694.65,0.0002,2]
[349536018,1737283875448,-500.0,0.0002,2]
[349536019,1737283875458,-500.0,0.0002,2]
[349536020,1737283875468,-500.0,0.0002,2]
[349536021,1737283875478,-500.0,0.0002,2]
[349536022,1737283875487,-2281.0,0.0002,2]
[349536023,1737283875498,-2319.64,0.0002,2]
[349536024,1737283875508,-500.0,0.0002,2]
[349536025,1737283875519,-500.0,0.0002,2]
[349536026,1737283875528,-500.0,0.0002,2]
[349536027,1737283875538,-500.0,0.0002,2]
[349536028,1737283875548,-338.62619317,0.0002,2]
[349536029,1737283875557,-500.0,0.0002,2]
[349536030,1737283875568,-579.85,0.0002,2]
[349536031,1737283875578,-608.39,0.0002,2]
[349536032,1737283875587,-814.26,0.0002,2]
[349536033,1737283875596,-500.0,0.0002,2]
[349536034,1737283875606,-500.0,0.0002,2]
[349536035,1737283875615,-666.3,0.0002,2]
[349536036,1737283875625,-510.93,0.0002,2]
[349536037,1737283875634,-1602.86,0.0002,2]
[349536038,1737283875643,-500.0,0.0002,2]
[349536039,1737283875654,-1636.5,0.0002,2]